fUSD/lending_fUSD_20250524
["ID","MTS","AMOUNT","RATE_DAILY","PERIOD"]
[362220683,1748111442050,-420.0,0.00019178,2]
[362220685,1748111442060,-420.0,0.00019178,2]
[362220687,1748111442069,-552.47598728,0.00019178,2]
[362220688,1748111442078,-420.0,0.00019178,2]
[362220689,1748111442088,-420.0,0.00019178,2]
[362220690,1748111442098,-547.31,0.00019178,2]
[362220691,1748111442107,-420.0,0.00019178,2]
[362220692,1748111442118,-529.45,0.00019178,2]
[362220693,1748111442127,-420.0,0.00019178,2]
[362220694,1748111442136,-420.0,0.00019178,2]
[362220695,1748111442146,-420.0,0.00019178,2]
[362220696,1748111442155,-420.0,0.00019178,2]
[362220697,1748111442164,-420.0,0.00019178,2]
[362220698,1748111442173,-713.44,0.00019178,2]
[362220699,1748111442183,-420.0,0.00019178,2]
[362220700,1748111442193,-420.0,0.00019178,2]
[362220701,1748111442202,-380.79448363,0.00019178,2]
[362220702,1748111442211,-420.0,0.00019178,2]
[362220703,1748111442220,-420.0,0.00019178,2]
[362220704,1748111442230,-420.0,0.00019178,2]
[362220705,1748111442239,-420.0,0.00019178,2]
[362220706,1748111442248,-420.0,0.00019178,2]
[362220707,1748111442258,-420.0,0.00019178,2]
[362220709,1748111442267,-420.0,0.00019178,2]
[362220711,1748111442276,-352.49600779,0.00019178,2]
[362220713,1748111442285,-420.0,0.00019178,2]
[362220715,1748111442294,-420.0,0.00019178,2]
[362220717,1748111442303,-420.0,0.00019178,2]
[362220719,1748111442312,-420.0,0.00019178,2]
[362220721,1748111442322,-420.0,0.00019178,2]
[362220723,1748111442331,-420.0,0.00019178,2]
[362220725,1748111442341,-1468.73,0.00019178,2]
[362220727,1748111442350,-507.68630314,0.00019178,2]
[362220729,1748111442359,-420.0,0.00019178,2]
[362220731,1748111442368,-567.32,0.00019178,2]
[362220733,1748111442377,-420.0,0.00019178,2]
[362220735,1748111442386,-420.0,0.00019178,2]
[362220737,1748111442395,-420.0,0.00019178,2]
[362220739,1748111442405,-420.0,0.00019178,2]
[362220741,1748111442414,-420.0,0.00019178,2]
[362220743,1748111442423,-420.0,0.00019178,2]
[362220745,1748111442432,-420.0,0.00019178,2]
[362220747,1748111442442,-420.0,0.00019178,2]
[362220749,1748111442452,-420.0,0.00019178,2]
[362220751,1748111442461,-3799.16,0.00019178,2]
[362220753,1748111442470,-420.0,0.00019178,2]
[362220755,1748111442479,-420.0,0.00019178,2]
[362220757,1748111442489,-420.0,0.00019178,2]
[362220759,1748111442498,-420.0,0.00019178,2]
[362220761,1748111442507,-184.45836164,0.00019178,2]
[362220763,1748111442517,-420.0,0.00019178,2]
[362220765,1748111442526,-420.0,0.00019178,2]
[362220767,1748111442535,-420.0,0.00019178,2]
[362220769,1748111442545,-420.0,0.00019178,2]
[362220771,1748111442554,-634.38,0.00019178,2]
[362220773,1748111442564,-4042.9,0.00019178,2]
[362220776,1748111442574,-4412.08,0.00019178,2]
[362220778,1748111442583,-420.0,0.00019178,2]
[362220779,1748111442592,-333.36242999,0.00019178,2]
[362220781,1748111442601,-420.0,0.00019178,2]
[362220783,1748111442611,-420.0,0.00019178,2]
[362220786,1748111442620,-420.0,0.00019178,2]
[362220788,1748111442630,-420.0,0.00019178,2]
[362220790,1748111442639,-314.53587971,0.00019178,2]
[362220792,1748111442649,-420.0,0.00019178,2]
[362220794,1748111442658,-420.0,0.00019178,2]
[362220796,1748111442667,-420.0,0.00019178,2]
[362220798,1748111442676,-420.0,0.00019178,2]
[362220800,1748111442686,-180.53314279,0.00019178,2]
[362220802,1748111442696,-420.0,0.00019178,2]
[362220804,1748111442705,-420.0,0.00019178,2]
[362220806,1748111442714,-162.35208633,0.00019178,2]
[362220808,1748111442723,-420.0,0.00019178,2]
[362220810,1748111442733,-420.0,0.00019178,2]
[362220812,1748111442742,-420.0,0.00019178,2]
[362220814,1748111442751,-5065.17,0.00019178,2]
[362220816,1748111442760,-5356.25,0.00019178,2]
[362220818,1748111442772,-557.94279715,0.00019178,2]
[362220820,1748111442781,-420.0,0.00019178,2]
[362220822,1748111442791,-420.0,0.00019178,2]
[362220824,1748111442800,-660.59,0.00019178,2]
[362220826,1748111442809,-420.0,0.00019178,2]
[362220828,1748111442818,-420.0,0.00019178,2]
[362220830,1748111442828,-420.0,0.00019178,2]
[362220832,1748111442837,-420.0,0.00019178,2]
[362220834,1748111442846,-420.0,0.00019178,2]
[362220836,1748111442856,-2591.12,0.00019178,2]
[362220838,1748111442865,-420.0,0.00019178,2]
[362220840,1748111442875,-420.0,0.00019178,2]
[362220842,1748111442885,-2106.68,0.00019178,2]
[362220844,1748111442894,-422.06450214,0.00019178,2]
[362220846,1748111442903,-13312.14,0.00019178,2]
[362220848,1748111442912,-420.0,0.00019178,2]
[362220850,1748111442922,-585.82,0.00019178,2]
[362220852,1748111442931,-420.0,0.00019178,2]
[362220854,1748111442941,-420.0,0.00019178,2]
[362220856,1748111442951,-420.0,0.00019178,2]
[362220859,1748111442960,-420.0,0.00019178,2]
[362220862,1748111442969,-420.0,0.00019178,2]
[362220865,1748111442980,-1241.07,0.00019178,2]
[362220868,1748111442990,-420.0,0.00019178,2]
[362220870,1748111443000,-420.0,0.00019178,2]
[362220872,1748111443010,-420.0,0.00019178,2]
[362220875,1748111443019,-420.0,0.00019178,2]
[362220877,1748111443030,-420.0,0.00019178,2]
[362220879,1748111443040,-1262.88,0.00019178,2]
[362220881,1748111443050,-420.0,0.00019178,2]
[362220883,1748111443061,-420.0,0.00019178,2]
[362220885,1748111443070,-420.0,0.00019178,2]
[362220887,1748111443080,-420.0,0.00019178,2]
[362220889,1748111443089,-512.76,0.00019178,2]
[362220892,1748111443100,-420.0,0.00019178,2]
[362220895,1748111443110,-420.0,0.00019178,2]
[362220897,1748111443119,-420.0,0.00019178,2]
[362220899,1748111443128,-420.0,0.00019178,2]
[362220900,1748111443137,-420.0,0.00019178,2]
[362220902,1748111443147,-420.0,0.00019178,2]
[362220903,1748111443156,-437.94638799,0.00019178,2]
[362220904,1748111443165,-420.0,0.00019178,2]
[362220905,1748111443175,-2207.55,0.00019178,2]
[362220906,1748111443184,-420.0,0.00019178,2]
[362220907,1748111443194,-420.0,0.00019178,2]
[362220908,1748111443203,-420.0,0.00019178,2]
[362220910,1748111443212,-454.01344983,0.00019178,2]
[362220912,1748111443221,-420.0,0.00019178,2]
[362220914,1748111443230,-420.0,0.00019178,2]
[362220916,1748111443240,-420.0,0.00019178,2]
[362220918,1748111443249,-420.0,0.00019178,2]
[362220920,1748111443258,-420.0,0.00019178,2]
[362220922,1748111443267,-176145.52,0.00019178,2]
[362220924,1748111443277,-6913.22,0.00019178,2]
[362220926,1748111443286,-420.0,0.00019178,2]
[362220928,1748111443295,-420.0,0.00019178,2]
[362220930,1748111443304,-420.0,0.00019178,2]
[362220932,1748111443313,-420.0,0.00019178,2]
[362220934,1748111443323,-420.0,0.00019178,2]
[362220936,1748111443332,-548.58,0.00019178,2]
[362220938,1748111443341,-2025.49065005,0.00019178,2]
[362220940,1748111443350,-420.0,0.00019178,2]
[362220942,1748111443359,-420.0,0.00019178,2]
[362220944,1748111443368,-420.0,0.00019178,2]
[362220946,1748111443377,-1955.49,0.00019178,2]
[362220948,1748111443386,-420.0,0.00019178,2]
[362220950,1748111443396,-420.0,0.00019178,2]
[362220952,1748111443405,-2419.11,0.00019178,2]
[362220954,1748111443414,-420.0,0.00019178,2]
[362220956,1748111443423,-513.88972977,0.00019178,2]
[362220958,1748111443432,-420.0,0.00019178,2]
[362220960,1748111443441,-420.0,0.00019178,2]
[362220962,1748111443450,-420.0,0.00019178,2]
[362220964,1748111443459,-420.0,0.00019178,2]
[362220966,1748111443468,-420.0,0.00019178,2]
[362220968,1748111443477,-468.55,0.00019178,2]
[362220970,1748111443487,-177.53406854,0.00019178,2]
[362220972,1748111443496,-420.0,0.00019178,2]
[362220974,1748111443505,-420.0,0.00019178,2]
[362220976,1748111443515,-420.0,0.00019178,2]
[362220978,1748111443523,-525.50063184,0.00019178,2]
[362220980,1748111443533,-1153.92,0.00019178,2]
[362220982,1748111443553,-7108.72,0.00019178,2]
[362220984,1748111443568,-420.0,0.00019178,2]
[362220986,1748111443577,-420.0,0.00019178,2]
[362220988,1748111443586,-420.0,0.00019178,2]
[362220990,1748111443596,-420.0,0.00019178,2]
[362220992,1748111443605,-420.0,0.00019178,2]
[362220994,1748111443614,-420.0,0.00019178,2]
[362220996,1748111443623,-420.0,0.00019178,2]
[362220998,1748111443633,-420.0,0.00019178,2]
[362221001,1748111443642,-2231.52,0.00019178,2]
[362221004,1748111443651,-420.0,0.00019178,2]
[362221007,1748111443661,-420.0,0.00019178,2]
[362221009,1748111443670,-432.69004805,0.00019178,2]
[362221011,1748111443679,-463.32340476,0.00019178,2]
[362221013,1748111443688,-420.0,0.00019178,2]
[362221015,1748111443699,-420.0,0.00019178,2]
[362221017,1748111443708,-420.0,0.00019178,2]
[362221020,1748111443717,-427.40034022,0.00019178,2]
[362221022,1748111443726,-420.0,0.00019178,2]
[362221024,1748111443735,-420.0,0.00019178,2]
[362221026,1748111443744,-420.0,0.00019178,2]
[362221028,1748111443754,-420.0,0.00019178,2]
[362221030,1748111443763,-420.0,0.00019178,2]
[362221032,1748111443772,-420.0,0.00019178,2]
[362221034,1748111443780,-5191.64,0.00019178,2]
[362221036,1748111443790,-420.0,0.00019178,2]
[362221038,1748111443798,-420.0,0.00019178,2]
[362221040,1748111443807,-420.0,0.00019178,2]
[362221042,1748111443816,-420.0,0.00019178,2]
[362221044,1748111443825,-1024.24,0.00019178,2]
[362221046,1748111443834,-2671.75,0.00019178,2]
[362221048,1748111443843,-420.0,0.00019178,2]
[362221050,1748111443852,-420.0,0.00019178,2]
[362221052,1748111443861,-420.0,0.00019178,2]
[362221054,1748111443870,-509.58243295,0.00019178,2]
[362221056,1748111443879,-457.07327518,0.00019178,2]
[362221058,1748111443889,-420.0,0.00019178,2]
[362221060,1748111443899,-420.0,0.00019178,2]
[362221062,1748111443908,-420.0,0.00019178,2]
[362221064,1748111443918,-420.0,0.00019178,2]
[362221066,1748111443927,-389.42593539,0.00019178,2]
[362221068,1748111443937,-441.02822072,0.00019178,2]
[362221070,1748111443946,-845.58,0.00019178,2]
[362221072,1748111443955,-420.0,0.00019178,2]
[362221074,1748111443964,-420.0,0.00019178,2]
[362221076,1748111443975,-160.0,0.00019178,2]
[362221078,1748111443987,-254.13272928,0.00019178,2]
[362221080,1748111443996,-420.0,0.00019178,2]
[362221082,1748111444006,-420.0,0.00019178,2]
[362221084,1748111444015,-2654.26,0.00019178,2]
[362221086,1748111444025,-420.0,0.00019178,2]
[362221088,1748111444035,-420.0,0.00019178,2]
[362221090,1748111444044,-420.0,0.00019178,2]
[362221092,1748111444054,-426.37984901,0.00019178,2]
[362221095,1748111444064,-420.0,0.00019178,2]
[362221097,1748111444074,-420.0,0.00019178,2]
[362221099,1748111444084,-420.0,0.00019178,2]
[362221101,1748111444094,-3988.87,0.00019178,2]
[362221103,1748111444103,-420.0,0.00019178,2]
[362221105,1748111444112,-420.0,0.00019178,2]
[362221107,1748111444121,-420.0,0.00019178,2]
[362221126,1748111444268,-420.0,0.00019178,2]
[362221128,1748111444304,-420.0,0.00019178,2]
[362221130,1748111444314,-420.0,0.00019178,2]
[362221132,1748111444324,-420.0,0.00019178,2]
[362221135,1748111444333,-420.0,0.00019178,2]
[362221136,1748111444342,-420.0,0.00019178,2]
[362221139,1748111444352,-420.0,0.00019178,2]
[362221140,1748111444361,-420.0,0.00019178,2]
[362221143,1748111444371,-420.0,0.00019178,2]
[362221145,1748111444382,-420.0,0.00019178,2]
[362221147,1748111444392,-420.0,0.00019178,2]
[362221149,1748111444401,-420.0,0.00019178,2]
[362221151,1748111444411,-534.45,0.00019178,2]
[362221152,1748111444420,-420.0,0.00019178,2]
[362221154,1748111444429,-420.0,0.00019178,2]
[362221156,1748111444438,-476.86,0.00019178,2]
[362221158,1748111444448,-255.73146085,0.00019178,2]
[362221161,1748111444458,-420.0,0.00019178,2]
[362221163,1748111444467,-420.0,0.00019178,2]
[362221164,1748111444477,-420.0,0.00019178,2]
[362221165,1748111444486,-431.65081631,0.00019178,2]
[362221166,1748111444495,-480.14,0.00019178,2]
[362221167,1748111444504,-420.0,0.00019178,2]
[362221168,1748111444513,-420.0,0.00019178,2]
[362221169,1748111444523,-430.90304926,0.00019178,2]
[362221170,1748111444533,-420.0,0.00019178,2]
[362221171,1748111444542,-420.0,0.00019178,2]
[362221173,1748111444552,-420.0,0.00019178,2]
[362221175,1748111444561,-432.55484346,0.00019178,2]
[362221177,1748111444570,-420.0,0.00019178,2]
[362221179,1748111444579,-420.0,0.00019178,2]
[362221181,1748111444589,-420.0,0.00019178,2]
[362221183,1748111444598,-420.0,0.00019178,2]
[362221185,1748111444608,-9001.24,0.00019178,2]
[362221187,1748111444618,-420.0,0.00019178,2]
[362221189,1748111444628,-420.0,0.00019178,2]
[362221191,1748111444637,-420.0,0.00019178,2]
[362221193,1748111444647,-293.79037695,0.00019178,2]
[362221195,1748111444656,-425.69119215,0.00019178,2]
[362221197,1748111444666,-420.0,0.00019205,2]
[362221199,1748111444675,-212.773376,0.00019205,2]
[362221201,1748111444685,-420.0,0.00019205,2]
[362221203,1748111444694,-424.25229261,0.00019205,2]
[362221205,1748111444704,-250.0,0.00019205,2]
[362221207,1748111444714,-420.0,0.00019205,2]
[362221210,1748111444723,-420.0,0.00019205,2]
[362221212,1748111444733,-420.0,0.00019205,2]
[362221213,1748111444742,-420.0,0.00019205,2]
[362221215,1748111444752,-420.0,0.00019205,2]
[362221217,1748111444761,-420.0,0.00019205,2]
[362221219,1748111444771,-420.0,0.00019205,2]
[362221221,1748111444780,-1404.74,0.00019205,2]
[362221223,1748111444789,-420.0,0.00019205,2]
[362221225,1748111444799,-241.54603223,0.00019205,2]
[362221227,1748111444809,-225.87530244,0.00019205,2]
[362221229,1748111444818,-420.0,0.00019205,2]
[362221231,1748111444830,-181.22441643,0.00019205,2]
[362221233,1748111444839,-420.0,0.00019205,2]
[362221235,1748111444849,-420.0,0.00019205,2]
[362221237,1748111444859,-420.0,0.00019205,2]
[362221240,1748111444869,-420.0,0.00019205,2]
[362221242,1748111444879,-316.95209069,0.00019205,2]
[362221244,1748111444889,-420.0,0.00019205,2]
[362221246,1748111444900,-420.0,0.00019205,2]
[362221248,1748111444913,-420.0,0.00019205,2]
[362221250,1748111444924,-418.15599911,0.00019205,2]
[362221252,1748111444934,-420.0,0.00019205,2]
[362221254,1748111444944,-1730.0,0.00019205,2]
[362221257,1748111444954,-420.0,0.00019205,2]
[362221259,1748111444964,-420.0,0.00019205,2]
[362221261,1748111444975,-938.74,0.00019205,2]
[362221263,1748111444990,-420.0,0.00019205,2]
[362221265,1748111445000,-420.0,0.00019205,2]
[362221267,1748111445010,-420.0,0.00019205,2]
[362221269,1748111445020,-1208.98,0.00019205,2]
[362221271,1748111445030,-420.0,0.00019205,2]
[362221273,1748111445040,-420.0,0.00019205,2]
[362221275,1748111445050,-420.0,0.00019205,2]
[362221277,1748111445061,-420.0,0.00019205,2]
[362221279,1748111445071,-1687.99,0.00019205,2]
[362221281,1748111445081,-1063.13,0.00019205,2]
[362221283,1748111445092,-420.0,0.00019205,2]
[362221285,1748111445102,-1035.35,0.00019205,2]
[362221287,1748111445111,-420.0,0.00019205,2]
[362221289,1748111445121,-420.0,0.00019205,2]
[362221291,1748111445131,-420.0,0.00019205,2]
[362221294,1748111445141,-420.0,0.00019205,2]
[362221296,1748111445151,-420.0,0.00019205,2]
[362221298,1748111445161,-420.0,0.00019205,2]
[362221300,1748111445172,-420.0,0.00019205,2]
[362221302,1748111445182,-553.0096721,0.00019205,2]
[362221304,1748111445193,-420.0,0.00019205,2]
[362221306,1748111445203,-420.0,0.00019205,2]
[362221308,1748111445214,-420.0,0.00019205,2]
[362221310,1748111445224,-420.0,0.00019205,2]
[362221312,1748111445235,-420.0,0.00019205,2]
[362221314,1748111445244,-420.0,0.00019205,2]
[362221316,1748111445255,-420.0,0.00019205,2]
[362221318,1748111445264,-1531.99,0.00019205,2]
[362221320,1748111445274,-420.0,0.00019205,2]
[362221322,1748111445284,-420.0,0.00019205,2]
[362221324,1748111445294,-420.0,0.00019205,2]
[362221326,1748111445304,-420.0,0.00019205,2]
[362221329,1748111445315,-477.84855975,0.00019205,2]
[362221331,1748111445325,-420.0,0.00019205,2]
[362221332,1748111445335,-420.0,0.00019205,2]
[362221335,1748111445344,-420.0,0.00019205,2]
[362221337,1748111445355,-420.0,0.00019205,2]
[362221339,1748111445364,-420.0,0.00019205,2]
[362221341,1748111445374,-420.0,0.00019205,2]
[362221343,1748111445384,-420.0,0.00019205,2]
[362221345,1748111445393,-420.0,0.00019205,2]
[362221347,1748111445403,-420.0,0.00019205,2]
[362221349,1748111445412,-420.0,0.00019205,2]
[362221351,1748111445422,-452.61,0.00019205,2]
[362221353,1748111445431,-420.0,0.00019205,2]
[362221355,1748111445441,-420.0,0.00019205,2]
[362221357,1748111445452,-518.83467523,0.00019205,2]
[362221359,1748111445462,-420.0,0.00019205,2]
[362221361,1748111445472,-420.0,0.00019205,2]
[362221363,1748111445482,-420.0,0.00019205,2]
[362221365,1748111445491,-529.65206754,0.00019205,2]
[362221367,1748111445501,-420.0,0.00019205,2]
[362221369,1748111445511,-180.04226817,0.00019205,2]
[362221371,1748111445521,-420.0,0.00019205,2]
[362221373,1748111445531,-420.0,0.00019205,2]
[362221375,1748111445541,-420.0,0.00019205,2]
[362221377,1748111445551,-420.0,0.00019205,2]
[362221379,1748111445560,-420.0,0.00019205,2]
[362221381,1748111445570,-420.0,0.00019205,2]
[362221383,1748111445579,-420.0,0.00019205,2]
[362221385,1748111445589,-381.46672693,0.00019205,2]
[362221387,1748111445599,-420.0,0.00019205,2]
[362221389,1748111445609,-420.0,0.00019205,2]
[362221391,1748111445618,-420.0,0.00019205,2]
[362221393,1748111445628,-420.0,0.00019205,2]
[362221395,1748111445638,-420.0,0.00019205,2]
[362221397,1748111445647,-389.31786696,0.00019205,2]
[362221399,1748111445657,-420.0,0.00019205,2]
[362221401,1748111445666,-420.0,0.00019205,2]
[362221403,1748111445676,-420.0,0.00019205,2]
[362221405,1748111445685,-420.0,0.00019205,2]
[362221407,1748111445695,-420.0,0.00019205,2]
[362221409,1748111445704,-420.0,0.00019205,2]
[362221411,1748111445714,-420.0,0.00019205,2]
[362221413,1748111445723,-420.0,0.00019205,2]
[362221415,1748111445733,-420.0,0.00019205,2]
[362221416,1748111445743,-420.0,0.00019205,2]
[362221417,1748111445752,-560.44825089,0.00019205,2]
[362221418,1748111445762,-226.75417437,0.00019205,2]
[362221419,1748111445771,-420.0,0.00019205,2]
[362221420,1748111445781,-420.0,0.00019205,2]
[362221421,1748111445791,-480.80072377,0.00019205,2]
[362221422,1748111445800,-420.0,0.00019205,2]
[362221424,1748111445810,-420.0,0.00019205,2]
[362221426,1748111445819,-420.0,0.00019205,2]
[362221428,1748111445829,-420.0,0.00019205,2]
[362221430,1748111445838,-420.0,0.00019205,2]
[362221432,1748111445848,-420.0,0.00019205,2]
[362221434,1748111445857,-420.0,0.00019205,2]
[362221436,1748111445867,-486.48320036,0.00019205,2]
[362221438,1748111445876,-420.0,0.00019205,2]
[362221440,1748111445886,-420.0,0.00019205,2]
[362221443,1748111445896,-420.0,0.00019205,2]
[362221445,1748111445905,-477.41838097,0.00019205,2]
[362221447,1748111445915,-420.0,0.00019205,2]
[362221449,1748111445926,-420.0,0.00019205,2]
[362221451,1748111445936,-420.0,0.00019205,2]
[362221453,1748111445945,-420.0,0.00019205,2]
[362221455,1748111445955,-420.0,0.00019205,2]
[362221458,1748111445965,-420.0,0.00019205,2]
[362221461,1748111445974,-547.31,0.00019205,2]
[362221464,1748111445988,-420.0,0.00019205,2]
[362221466,1748111445998,-529.45,0.00019205,2]
[362221468,1748111446008,-420.0,0.00019205,2]
[362221471,1748111446018,-420.0,0.00019205,2]
[362221474,1748111446028,-420.0,0.00019205,2]
[362221477,1748111446038,-354.87062839,0.00019205,2]
[362221480,1748111446047,-420.0,0.00019205,2]
[362221482,1748111446058,-713.44,0.00019205,2]
[362221484,1748111446068,-420.0,0.00019205,2]
[362221486,1748111446077,-420.0,0.00019205,2]
[362221488,1748111446087,-420.0,0.00019205,2]
[362221490,1748111446097,-420.0,0.00019205,2]
[362221492,1748111446106,-420.0,0.00019205,2]
[362221494,1748111446116,-420.0,0.00019205,2]
[362221496,1748111446125,-420.0,0.00019205,2]
[362221498,1748111446135,-420.0,0.00019205,2]
[362221500,1748111446145,-420.0,0.00019205,2]
[362221502,1748111446154,-420.0,0.00019205,2]
[362221504,1748111446164,-420.0,0.00019205,2]
[362221506,1748111446174,-420.0,0.00019205,2]
[362221508,1748111446184,-1468.73,0.00019205,2]
[362221510,1748111446194,-567.32,0.00019205,2]
[362221512,1748111446204,-420.0,0.00019205,2]
[362221514,1748111446214,-420.0,0.00019205,2]
[362221516,1748111446223,-420.0,0.00019205,2]
[362221518,1748111446233,-420.0,0.00019205,2]
[362221520,1748111446242,-420.0,0.00019205,2]
[362221522,1748111446252,-420.0,0.00019205,2]
[362221524,1748111446261,-3799.16,0.00019205,2]
[362221526,1748111446271,-423.0666359,0.00019205,2]
[362221528,1748111446280,-420.0,0.00019205,2]
[362221530,1748111446289,-420.0,0.00019205,2]
[362221532,1748111446299,-634.38,0.00019205,2]
[362221534,1748111446309,-4042.9,0.00019205,2]
[362221536,1748111446318,-4412.08,0.00019205,2]
[362221538,1748111446327,-420.0,0.00019205,2]
[362221540,1748111446338,-420.0,0.00019205,2]
[362221542,1748111446347,-420.0,0.00019205,2]
[362221544,1748111446357,-420.0,0.00019205,2]
[362221546,1748111446367,-420.0,0.00019205,2]
[362221548,1748111446377,-420.0,0.00019205,2]
[362221550,1748111446387,-420.0,0.00019205,2]
[362221553,1748111446396,-420.0,0.00019205,2]
[362221555,1748111446406,-5065.17,0.00019205,2]
[362221557,1748111446415,-5356.25,0.00019205,2]
[362221559,1748111446424,-660.59,0.00019205,2]
[362221561,1748111446436,-420.0,0.00019205,2]
[362221563,1748111446445,-420.0,0.00019205,2]
[362221565,1748111446455,-2591.12,0.00019205,2]
[362221567,1748111446464,-2106.68,0.00019205,2]
[362221569,1748111446474,-13312.14,0.00019205,2]
[362221571,1748111446483,-585.82,0.00019205,2]
[362221573,1748111446492,-420.0,0.00019205,2]
[362221575,1748111446501,-420.0,0.00019205,2]
[362221577,1748111446511,-420.0,0.00019205,2]
[362221579,1748111446520,-420.0,0.00019205,2]
[362221581,1748111446529,-1241.07,0.00019205,2]
[362221583,1748111446539,-420.0,0.00019205,2]
[362221585,1748111446548,-420.0,0.00019205,2]
[362221587,1748111446558,-420.0,0.00019205,2]
[362221589,1748111446567,-1262.88,0.00019205,2]
[362221591,1748111446577,-420.0,0.00019205,2]
[362221593,1748111446586,-420.0,0.00019205,2]
[362221595,1748111446595,-420.0,0.00019205,2]
[362221597,1748111446605,-512.76,0.00019205,2]
[362221599,1748111446615,-420.0,0.00019205,2]
[362221601,1748111446624,-420.0,0.00019205,2]
[362221603,1748111446634,-420.0,0.00019205,2]
[362221605,1748111446643,-420.0,0.00019205,2]
[362221607,1748111446653,-420.0,0.00019205,2]
[362221609,1748111446662,-420.0,0.00019205,2]
[362221611,1748111446672,-2207.55,0.00019205,2]
[362221613,1748111446682,-420.0,0.00019205,2]
[362221615,1748111446691,-420.0,0.00019205,2]
[362221618,1748111446701,-420.0,0.00019205,2]
[362221620,1748111446710,-420.0,0.00019205,2]
[362221628,1748111446776,-420.0,0.00019205,2]
[362221630,1748111446786,-42494.47703928,0.00019205,2]
[362221636,1748111446839,-5049.66300896,0.00019205,2]
[362222701,1748111856434,246.5,0.00013699,2]
[362222703,1748112112042,567.26,0.00016317,2]
[362222704,1748112306645,10373.7,0.00027397,120]
[362222705,1748112391105,-173.0,0.00018225,2]
[362222706,1748112391126,-171.40529108,0.00018229,2]
[362223477,1748112640473,-260.05042328,0.0001822,2]
[362223509,1748112640788,-739.94957672,0.0001822,2]
[362223511,1748112640797,-78.59470892,0.00018229,2]
[362223513,1748112640807,-150.0,0.00018233,7]
[362223515,1748112640816,-250.0,0.00018308,2]
[362223517,1748112640826,-567.26,0.00018581,2]
[362223519,1748112640835,-500.0,0.00018849,2]
[362223521,1748112640845,-230.090276,0.00019009,2]
[362223523,1748112640854,-176.53946704,0.00019078,2]
[362223526,1748112640863,-3370.41308392,0.00019078,2]
[362223528,1748112640873,-5553.43906617,0.00019078,2]
[362223530,1748112640884,-806.0,0.000191,2]
[362223532,1748112640894,-463.5,0.000191,2]
[362223534,1748112640903,-806.0,0.000191,2]
[362223536,1748112640912,-1159.67,0.000191,2]
[362223538,1748112640922,-150.43,0.000191,2]
[362223540,1748112640936,-3370.41308392,0.00019102,2]
[362223542,1748112640945,-5553.43906609,0.00019102,2]
[362223544,1748112640954,-180.62410854,0.00019105,2]
[362223546,1748112640963,-3370.41308392,0.00019127,2]
[362223548,1748112640973,-5553.43906609,0.00019127,2]
[362223550,1748112640982,-3370.41308392,0.00019151,2]
[362223552,1748112640991,-5553.43906609,0.00019151,2]
[362223554,1748112641000,-151.0,0.00019166,2]